[Event "SVK ECo-C Extraliga 2021-22"]
[Site "Slovakia"]
[Date "2022.06.11"]
[Round "10"]
[White "Vojtek Vladimir"]
[Black "Zvarik Martin"]
[Result "1-0"]
[ECO "C77"]
[WhiteElo "2297"]
[BlackElo "2228"]
[Annotator "TA"]
[PlyCount "51"]
[EventDate "2021.10.21"]
[EventType "team-tourn"]
[EventCountry "SVK"]
[SourceTitle "playchess.com"]
[Source "ChessBase"]
[SourceQuality "1"]
[TimeControl "40/5400+30:1800+30"]

{[%evp 12,51,11,28,60,-14,0,0,14,0,9,-8,18,21,21,28,14,-14,0,-5,111,0,20,13,66,66,77,62,77,63,103,110,107,69,119,118,291,165,552,563,612,602]} 1. e4 {[%emt 0:00:12]} e5 {[%emt 0:00:20]} 2. Nf3 {[%emt 0:00:05]} Nc6 {[%emt 0:00:09]} 3. Bb5 {[%emt 0:00:05][%cal Bf1b5,Bb5a4,Ba4b3][%mdl 32]} a6 {[%emt 0:00:15]} 4. Ba4 {[%emt 0:00:05]} Nf6 {[%emt 0:00:14]} 5. Nc3 {[%emt 0:02:21]} Bc5 {[%emt 0:00:28]} 6. O-O {[%emt 0:00:29]} b5 {[%emt 0:00:23]} 7. Bb3 {[%emt 0:00:07]} d6 {[%emt 0:00:43] C77: Ruy Lopez: 3...a6 4 Ba4 Nf6, unusual lines.} 8. h3 {[%emt 0:03:43] Inhibits Bg4.} (8. Nd5 $14) 8... h6 {[%emt 0:14:02] [#]} 9. Ne2 $146 {[%emt 0:18:19]} ({Predecessor:} 9. d3 Na5 10. Ne2 O-O 11. Ng3 Bb6 12. c3 Nxb3 13. axb3 Re8 14. Be3 Rb8 15. Qd2 {1-0 (25) Stefansson,H (2518)-Braeuer,F (2435) Marianske Lazne 2022}) 9... Na5 {[%emt 0:04:49] The position is equal.} (9... Nxe4 10. Bd5 Qd7 11. d4 $14 (11. Bxe4 d5 $14)) 10. Ng3 {[%emt 0:02:28]} Nxb3 {[%emt 0:10:57]} 11. axb3 {[%emt 0:00:04]} Bb6 {[%emt 0:01:39]} 12. d4 {[%emt 0:08:14]} exd4 {[%emt 0:15:16]} 13. Nxd4 {[%emt 0:00:55]} O-O {[%emt 0:00:37]} 14. Qd3 {[%emt 0:12:19]} Re8 {[%emt 0:16:46]} 15. Nxb5 {[%emt 0:13:42]} Nd7 {[%emt 0:10:30]} (15... Bxh3 $11 16. Nxc7 Bxc7 17. gxh3 Qd7) 16. Qc3 {[%emt 0:15:15]} (16. Nc3 $16) 16... Nc5 {[%emt 0:09:26]} (16... Bb7 $5 {[%cal Ra6b5]} 17. Nd4 Nf6 $11) 17. Be3 {[%emt 0:06:13]} (17. Nh5 Re5 18. Ng3 Bb7 $15) (17. Bxh6 $2 gxh6 18. Qf3 (18. Nh5 $2 Re5 $19) 18... Bb7 $19) 17... Bd7 {[%emt 0:03:41]} ({Much less strong is} 17... Nxe4 18. Nxe4 Rxe4 19. Bxb6 (19. Qc6 Bf5 $14) 19... cxb6 20. Rfd1 $16 (20. Qc6 Bf5 $14)) (17... Bb7 $1 $11 18. Bxc5 Bxc5) 18. Bxc5 $14 {[%emt 0:03:28] White is more active.} Bxc5 {[%emt 0:01:20]} 19. Nd4 {[%emt 0:01:53]} Qg5 {[%emt 0:01:10]} 20. Kh2 $40 {[%emt 0:03:37][%mdl 128] Black needs to defend precisely.} Qf4 {[%emt 0:02:59] [#]} 21. Nde2 $1 {[%emt 0:00:53]} Qh4 {[%emt 0:00:58]} 22. Qf3 {[%emt 0:01:21]} Re5 {[%emt 0:00:51]} (22... Bc6 $14) 23. Nf4 $16 {[%emt 0:01:48]} Rg5 $2 {[%emt 0:00:46]} (23... Ree8 $16) 24. Nd3 {[%emt 0:02:05]} (24. Nf5 $142 Rxf5 25. exf5) 24... Bg4 $2 {[%emt 0:03:28] [#]} (24... Bc6 {is a better chance.} 25. Rfe1 (25. Nxc5 Rxc5 26. b4 Rc4 $16) 25... g6) 25. Qf4 $18 {[%emt 0:00:13]} Bd4 {[%emt 0:00:23]} 26. Nf5 {[%emt 0:01:43] Weighted Error Value: White=0.26 (precise) /Black=0.70} 1-0

[Event "SVK ECo-C Extraliga 2021-22"]
[Site "Slovakia"]
[Date "2022.06.11"]
[Round "10"]
[White "Chlpik, Martin"]
[Black "Gasa, Patrik"]
[Result "1/2-1/2"]
[ECO "D00"]
[WhiteElo "2252"]
[BlackElo "2178"]
[Annotator "TA"]
[PlyCount "48"]
[EventDate "2021.10.21"]
[EventType "team-tourn"]
[EventCountry "SVK"]
[SourceTitle "playchess.com"]
[Source "ChessBase"]
[SourceQuality "1"]
[TimeControl "40/5400+30:1800+30"]

{[%evp 9,48,-6,-4,-6,-5,0,-13,0,-14,-14,-14,-19,34,31,31,-20,-39,-47,0,0,0,-7,-7,-5,-5,-42,-38,-180,-106,-99,-93,-99,-97,-89,-70,-64,0,0,0,0,0]} 1. d4 {[%emt 0:00:11]} d5 {[%emt 0:06:55]} 2. Nc3 {[%emt 0:00:30]} Nf6 {[%emt 0:00:23]} 3. Bf4 {[%emt 0:00:05]} a6 {[%emt 0:00:32]} 4. e3 {[%emt 0:00:41]} b5 {[%emt 0:08:54]} 5. Nf3 {[%emt 0:11:15]} Bb7 {[%emt 0:07:14]} 6. Ne5 {[%emt 0:09:45] D00: 1 d4 d5: Unusual lines.} e6 {[%emt 0:04:33]} 7. a4 {[%emt 0:13:31]} b4 {[%emt 0:02:03]} 8. Na2 {[%emt 0:00:04] [#]} c5 $146 {[%emt 0:10:59]} ({Predecessor:} 8... Nbd7 9. Nd3 Ne4 10. f3 Nd6 11. Naxb4 Nc4 12. b3 g5 13. bxc4 gxf4 14. c5 Qh4+ {0-1 (40) Graf,F (2468)-Bogosavljevic,B (2518) Germany 2019}) 9. dxc5 {[%emt 0:00:44]} Bxc5 {[%emt 0:00:10]} 10. Nd3 {[%emt 0:00:08][%csl LRb4,LRc5]} Qe7 {[%emt 0:28:42]} (10... Bb6 $11) 11. Nxc5 $14 {[%emt 0:29:40]} Qxc5 {[%emt 0:00:08]} 12. c3 {[%emt 0:05:25]} ({Better is} 12. Qd4 $14 Qxd4 13. exd4) 12... bxc3 $1 $11 {[%emt 0:16:55]} 13. Rc1 {[%emt 0:00:36]} O-O {[%emt 0:08:25]} (13... Nc6 $15 {is superior.}) 14. Rxc3 {[%emt 0:00:56]} Qb6 {[%emt 0:00:31]} 15. Bd3 {[%emt 0:12:41]} Nbd7 {[%emt 0:00:57] [#] ...e5 is the strong threat.} 16. O-O {[%emt 0:06:23]} e5 {[%emt 0:00:28]} 17. Rb3 {[%emt 0:01:31]} Qc6 {[%emt 0:00:16]} 18. Nb4 {[%emt 0:00:12] [#]} (18. Bg5 $15) 18... Qxa4 {[%emt 0:00:33]} (18... Qd6 $1 $19 19. Bg5 Nc5 20. Bxf6 Nxb3 21. Bxg7 Kxg7 22. Qxb3 Rab8) 19. Bg5 $17 {[%emt 0:00:24]} h6 {[%emt 0:00:18]} ({Reject} 19... Nc5 $6 20. Bxf6 Qxb3 21. Bxh7+ (21. Qxb3 $2 Nxb3 22. Bxe5 a5 $17) 21... Kxh7 22. Qh5+ Kg8 23. Bxg7 Kxg7 24. Qg5+ Kh8 25. Qh5+ Kg8 26. Qg5+ Kh8 27. Qh5+ Kg8 28. Qg5+ Kh8 $11) 20. Bxf6 {[%emt 0:02:32]} Nxf6 {[%emt 0:00:31]} 21. Bc2 {[%emt 0:00:14]} Qd7 {[%emt 0:00:00]} 22. Nd3 {[%emt 0:00:10]} Qe7 {[%emt 0:00:40]} ({Black should try} 22... Rfe8 $15 23. Nc5 Qc7) 23. Nxe5 $1 $11 {[%emt 0:00:48]} Qxe5 {[%emt 0:00:02]} 24. Rxb7 {[%emt 0:00:07]} Rfb8 {[%emt 0:00:50] Weighted Error Value: White=0.19 (very precise) /Black=0.16 (very precise)} 1/2-1/2

[Event "SVK ECo-C Extraliga 2021-22"]
[Site "Slovakia"]
[Date "2022.06.11"]
[Round "10"]
[White "Rucek Kristian"]
[Black "Kopera Michal"]
[Result "1-0"]
[ECO "D37"]
[WhiteElo "2234"]
[BlackElo "2135"]
[Annotator "TA"]
[PlyCount "73"]
[EventDate "2021.10.21"]
[EventType "team-tourn"]
[EventCountry "SVK"]
[SourceTitle "playchess.com"]
[Source "ChessBase"]
[SourceQuality "1"]
[TimeControl "40/5400+30:1800+30"]

{[%evp 16,73,23,21,36,18,104,9,3,7,22,10,31,37,29,37,56,52,54,14,25,15,58,34,45,0,0,-5,-7,-8,-16,-15,-12,-8,0,0,16,15,13,4,4,5,4,4,12,13,13,13,13,13,23,22,58,15,7,0,69,0,29988,29989]} 1. d4 {[%emt 0:00:14]} d5 {[%emt 0:00:17]} 2. c4 {[%emt 0:00:06]} e6 {[%emt 0:00:07]} 3. Nf3 {[%emt 0:00:04]} Nf6 {[%emt 0:00:11]} 4. Nc3 {[%emt 0:00:08]} Be7 {[%emt 0:01:44]} 5. Bf4 {[%emt 0:00:12]} O-O {[%emt 0:04:12]} 6. e3 {[%emt 0:01:41]} c5 {[%emt 0:06:23]} 7. dxc5 {[%emt 0:08:23]} Bxc5 {[%emt 0:03:41]} 8. a3 {[%emt 0:00:39]} Nc6 {[%emt 0:14:01]} 9. Qc2 {[%emt 0:07:44]} Bd6 {[%emt 0:08:56] D37: Queen's Gambit Declined: 5 Bf4.} 10. Bg5 {[%emt 0:03:07]} dxc4 {[%emt 0:03:54] [#]} (10... Be7 $11) 11. Bxc4 {[%emt 0:00:47]} (11. O-O-O $1 $16 {Ne4 is the strong threat.} Qe7 12. Ne4 (12. Bxc4 h6 $16)) 11... Ne5 $11 {[%emt 0:00:39] The position is equal.} 12. Be2 {[%emt 0:01:55]} h6 {[%emt 0:02:17]} 13. Bh4 {[%emt 0:02:37] [#]} Ng6 $146 {[%emt 0:05:06]} ({Predecessor:} 13... Bd7 14. Rd1 Qc7 15. Bxf6 gxf6 16. Qd2 Qb6 17. Qxd6 Qxb2 18. Qb4 Qxb4 19. axb4 Nxf3+ 20. gxf3 Bc6 21. e4 {1-0 (21) Amin,B (2505)-Kuzubov,Y (2559) Batumi 2006}) 14. Bxf6 {[%emt 0:10:17]} Qxf6 {[%emt 0:00:30]} 15. Ne4 {[%emt 0:00:46][%cal Bc3e4,Be4d2,Bd2c4][%mdl 32]} Qf5 {[%emt 0:05:18]} 16. O-O {[%emt 0:03:15]} Be7 {[%emt 0:01:00]} 17. Nd4 {[%emt 0:11:36]} (17. Rfd1 $5 {[%cal Ra1c1]}) 17... Qa5 {[%emt 0:02:20]} 18. Rac1 {[%emt 0:12:20]} e5 {[%emt 0:08:10]} 19. Nb3 {[%emt 0:04:10]} Qb6 {[%emt 0:00:31]} 20. Ned2 {[%emt 0:01:00]} Be6 {[%emt 0:01:31]} 21. Nc4 {[%emt 0:04:43]} Qc7 {[%emt 0:05:08]} 22. Bd3 {[%emt 0:04:35]} Rac8 {[%emt 0:02:28][%cal Oe5e4] Threatens to win with ...e4!} 23. Qb1 {[%emt 0:08:36]} Rfd8 {[%emt 0:05:25][%cal Od8d3]} 24. Ncd2 {[%emt 0:03:28]} Qb6 {[%emt 0:01:04]} 25. Bxg6 {[%emt 0:02:41]} Bxb3 {[%emt 0:05:46] A strong pair of Bishops.} 26. Bh7+ {[%emt 0:04:07]} Kf8 {[%emt 0:01:10] Strongly threatening ...Rxc1.} 27. Rxc8 {[%emt 0:01:19]} Rxc8 {[%emt 0:00:01]} 28. Nxb3 {[%emt 0:01:25]} Qxb3 {[%emt 0:00:03]} 29. Bf5 {[%emt 0:01:02]} Rd8 {[%emt 0:01:36]} 30. Bc2 {[%emt 0:00:33]} Qb5 {[%emt 0:00:51]} 31. b4 {[%emt 0:00:51]} g6 {[%emt 0:03:14]} 32. g3 {[%emt 0:00:58]} Rd2 {[%emt 0:01:07]} 33. Qc1 {[%emt 0:00:50]} Qe2 {[%emt 0:01:17]} 34. Bb3 {[%emt 0:00:13] And now Bc4 would win.} Qd3 {[%emt 0:02:06]} 35. Qc8+ {[%emt 0:00:23]} Kg7 {[%emt 0:01:17]} ({Black should play} 35... Bd8 $1 $11 36. Qc1 (36. Bc4 Qc3 $15) 36... Kg7) 36. Bc4 {[%emt 0:00:24]} (36. Qxb7 $14 Qd7 37. Qa6) 36... Qxa3 $2 {[%emt 0:02:49][%mdl 8192] [#]} (36... Qe4 $11) 37. Qe8 {[%emt 0:00:34] Weighted Error Value: White=0.16 (very precise) /Black=0.36} 1-0

[Event "SVK ECo-C Extraliga 2021-22"]
[Site "Slovakia"]
[Date "2022.06.11"]
[Round "10"]
[White "Urhegyi, Marton"]
[Black "Chovan, Milan"]
[Result "0-1"]
[ECO "C78"]
[WhiteElo "2232"]
[BlackElo "2339"]
[Annotator "TA"]
[PlyCount "106"]
[EventDate "2021.10.21"]
[EventType "team-tourn"]
[EventCountry "SVK"]
[SourceTitle "playchess.com"]
[Source "ChessBase"]
[SourceQuality "1"]
[TimeControl "40/5400+30:1800+30"]

{[%evp 24,106,19,25,13,0,0,0,12,-8,0,-16,106,100,85,119,130,-52,-60,-60,-60,-47,-50,-222,-158,-146,-140,-240,-186,-166,-145,-151,-138,-342,-343,-348,-320,-325,-317,-660,-765,-355,-764,-658,-618,-618,-569,-12837,-12836,-12837,-12836,-12838,-12839,-12841,-12842,-12842,-12843,-12843,-12843,-12850,-27999,-27999,-27999,-27999,-27999,-27999,-27999,-27999,-27999,-27999,-27999,-27999,-27999,-27999,-27999,-27999,-27999,-27999,-27999,-27999,-27999,-27999,-27999,-27999,-27999]} 1. e4 {[%emt 0:00:07]} e5 {[%emt 0:00:11]} 2. Nf3 {[%emt 0:00:20]} Nc6 {[%emt 0:00:12]} 3. Bb5 {[%emt 0:03:20]} a6 {[%emt 0:00:47]} 4. Ba4 {[%emt 0:01:23]} Nf6 {[%emt 0:00:13]} 5. O-O {[%emt 0:00:08]} b5 {[%emt 0:00:21]} 6. Bb3 {[%emt 0:00:07]} Bb7 {[%emt 0:00:09]} 7. Re1 {[%emt 0:00:39]} Bc5 {[%emt 0:00:13]} 8. c3 {[%emt 0:01:28]} d6 {[%emt 0:00:10]} 9. d4 {[%emt 0:01:22]} Bb6 {[%emt 0:00:10]} 10. Bg5 {[%emt 0:06:23]} h6 {[%emt 0:00:38]} 11. Bh4 {[%emt 0:05:56]} g5 {[%emt 0:00:26]} 12. Bg3 {[%emt 0:03:28]} O-O {[%emt 0:00:57]} 13. dxe5 {[%emt 0:04:33]} Nxe5 {[%emt 0:01:32] C78: Ruy Lopez: Archangelsk and Möller Defences.} 14. Nxe5 {[%emt 0:04:54]} dxe5 {[%emt 0:00:11]} 15. Nd2 {[%emt 0:04:21]} Qe7 {[%emt 0:13:18] The position is equal.} 16. a4 {[%emt 0:22:06]} Rad8 {[%emt 0:07:49]} 17. Qe2 {[%emt 0:02:38] [#]} Rd7 $146 {[%emt 0:18:11]} (17... Rd6 $11) ({Predecessor:} 17... Rd6 18. axb5 axb5 19. Nf1 Bc6 20. Bc2 Rfd8 21. Rac1 h5 22. h3 h4 23. Bh2 Qe6 {0-1 (33) Garcia,G (2445)-Beliavsky,A (2605) Novi Sad 1990}) 18. axb5 $16 {[%emt 0:01:53]} axb5 {[%emt 0:00:42]} 19. Nf3 $1 {[%emt 0:07:31]} Nxe4 {[%emt 0:04:25]} 20. Nxe5 $2 {[%emt 0:05:23]} (20. Qc2 $1 $16 c5 21. Rxe4 Bxe4 22. Qxe4) 20... Rd2 $15 {[%emt 0:14:20]} 21. Qh5 {[%emt 0:01:55] Hoping for Qg6+.} Bxf2+ {[%emt 0:03:32]} (21... Nxg3 22. Qg6+ Kh8 23. Qxh6+ Kg8 24. Ng4 (24. Qg6+ Kh8 $11) 24... Bxf2+ 25. Nxf2 Ne2+ 26. Kf1 $11) 22. Bxf2 {[%emt 0:02:38]} Qxe5 {[%emt 0:00:43] Chess con chili.} 23. Ra7 $2 {[%emt 0:06:47]} ({White should play} 23. Re2 $15) 23... Bd5 {[%emt 0:06:26]} ({Weaker is} 23... Rxf2 24. Qg6+ Qg7 25. Qxg7+ Kxg7 26. Rxb7 Rxb2 27. Rxe4 Rxb3 28. Rxc7 $17) ({Much less strong is} 23... Rxb2 24. Bd4 Qf5 25. Rxb7 (25. Qxh6 Rxg2+ 26. Kxg2 Qg4+ 27. Kf1 Nd2+ 28. Kf2 Qf3+ 29. Kg1 Qg2#) 25... Nxc3 26. Rxb5 $3 {[%mdl 512]} (26. Rxc7 $2 Ne2+ 27. Kh1 Nxd4 $19) 26... Ne2+ 27. Kh1 $18) 24. Bxd5 {[%emt 0:04:34]} Qxd5 {[%emt 0:00:06]} 25. Qf3 {[%emt 0:02:32]} (25. Ra6 $17 c6 26. Be3 Rxb2 27. Qxh6) 25... Rxf2 $40 {[%emt 0:05:07][%mdl 128] Black is out for blood.} ({Stronger than} 25... f5 26. Be3 Rxb2 27. Rxc7 $17) 26. Qxe4 {[%emt 0:00:17]} Qxe4 {[%emt 0:03:53]} 27. Rxe4 {[%emt 0:00:05]} Rxb2 {[%emt 0:00:13] And now ...Rd8 would win.} 28. Rxc7 $2 $19 {[%emt 0:02:43][%mdl 4096] Endgame KRR-KRR. White does not recover from this.} (28. h4 $17 {was worth a try.}) 28... Rd8 {[%emt 0:02:11] ( -> ...Rd1+)} 29. h4 {[%emt 0:00:05]} Rd1+ {[%emt 0:00:26]} 30. Kh2 {[%emt 0:01:59]} Rdd2 {[%emt 0:17:58]} 31. Rg4 {[%emt 0:04:25]} (31. hxg5 Rxg2+ 32. Kh3) 31... f5 {[%emt 0:00:30]} 32. Rd4 {[%emt 0:00:30]} Rxg2+ {[%emt 0:00:30]} 33. Kh1 {[%emt 0:00:30]} Rgd2 {[%emt 0:00:30]} 34. Rxd2 {[%emt 0:00:30]} Rxd2 {[%emt 0:00:30]} 35. hxg5 {[%emt 0:00:30]} hxg5 {[%emt 0:00:30][%cal Bh6g5,Bg5g4,Bg4g3][%mdl 32] KR-KR} 36. Rc5 {[%emt 0:00:30] [#]} Rf2 $1 {[%emt 0:00:30]} 37. Rxb5 {[%emt 0:00:30]} Kg7 {[%emt 0:00:30]} 38. Rb6 {[%emt 0:00:30]} Rc2 {[%emt 0:00:30]} 39. Rc6 {[%emt 0:00:30]} g4 {[%emt 0:00:30]} 40. Kg1 {[%emt 0:00:30]} g3 {[%emt 0:00:30]} 41. Rd6 {[%emt 0:30:30]} Rxc3 {[%emt 0:30:30]} 42. Kg2 {[%emt 0:00:30] Black mates.} f4 {[%emt 0:00:30]} 43. Rd2 {[%emt 0:00:30]} Kf6 {[%emt 0:00:30]} 44. Kh3 {[%emt 0:00:30]} Kf5 {[%emt 0:00:30]} 45. Ra2 {[%emt 0:00:30]} Re3 {[%emt 0:00:30]} 46. Ra8 {[%emt 0:00:30]} Re7 {[%emt 0:00:30]} 47. Ra5+ {[%emt 0:00:30]} Ke4 {[%emt 0:00:30]} 48. Kg2 {[%emt 0:00:30]} Rd7 {[%emt 0:00:30]} 49. Ra3 {[%emt 0:00:30]} Rd2+ {[%emt 0:00:30]} 50. Kh3 {[%emt 0:00:30]} Rh2+ {[%emt 0:00:30]} 51. Kg4 {[%emt 0:00:30]} g2 {[%emt 0:00:30]} 52. Ra4+ {[%emt 0:00:30]} Kd5 {[%emt 0:00:30]} 53. Ra1 {[%emt 0:00:30]} Rh1 {[%emt 0:00:30] Weighted Error Value: White=0.64/Black=0.14 (very precise)} 0-1

[Event "SVK ECo-C Extraliga 2021-22"]
[Site "Slovakia"]
[Date "2022.06.11"]
[Round "10"]
[White "Spacek, Oliver"]
[Black "Klemanic, Emil"]
[Result "1/2-1/2"]
[ECO "E90"]
[WhiteElo "2207"]
[BlackElo "2104"]
[Annotator "TA"]
[PlyCount "114"]
[EventDate "2021.10.21"]
[EventType "team-tourn"]
[EventCountry "SVK"]
[SourceTitle "playchess.com"]
[Source "ChessBase"]
[SourceQuality "1"]
[TimeControl "40/5400+30:1800+30"]

{[%evp 11,114,38,49,0,5,6,70,20,30,33,57,62,52,31,76,77,89,85,83,70,70,66,68,34,31,31,48,0,85,41,80,77,82,29,75,0,0,-8,0,-5,25,11,32,0,65,54,56,31,35,0,0,0,27,26,61,61,61,61,72,72,76,77,79,0,84,0,85,0,85,85,92,85,85,67,83,62,83,70,79,79,82,79,93,87,155,149,142,104,121,32,81,18,81,68,71,35,81,71,75,18,19,22,25,29,89]} 1. d4 {[%emt 0:00:12]} Nf6 {[%emt 0:00:08]} 2. Nf3 {[%emt 0:00:43]} g6 {[%emt 0:00:09]} 3. c4 {[%emt 0:00:51]} Bg7 {[%emt 0:00:07]} 4. Nc3 {[%emt 0:00:06]} d6 {[%emt 0:00:03]} 5. e4 {[%emt 0:00:50]} O-O {[%emt 0:00:05]} 6. h3 {[%emt 0:01:46]} Nc6 {[%emt 0:03:28]} 7. Bd3 {[%emt 0:01:40] E90: King's Indian: Classical: Early deviations and 6 h3.} e5 {[%emt 0:00:47]} 8. d5 {[%emt 0:00:12]} Ne7 {[%emt 0:00:04]} (8... Nd4 $11) 9. g4 {[%emt 0:00:32] [#]} (9. O-O $14) 9... a5 $146 {[%emt 0:00:11]} ({Predecessor:} 9... c6 10. Be3 a6 11. Qd2 cxd5 12. cxd5 b5 13. a3 Bd7 14. Rc1 Re8 15. Ng1 Rb8 {1-0 (44) Bachofner,A (2213)-Sadilek,M (2313) Austria 2020}) 10. Bg5 {[%emt 0:10:20]} Nd7 {[%emt 0:00:50]} 11. Bc2 {[%emt 0:03:37]} Nc5 {[%emt 0:00:12]} 12. Qe2 {[%emt 0:05:38]} h6 {[%emt 0:04:25]} 13. Be3 {[%emt 0:06:17]} g5 {[%emt 0:05:09]} 14. O-O-O {[%emt 0:21:54]} Ng6 {[%emt 0:01:41] Inhibits h4.} 15. Rdg1 {[%emt 0:00:21]} Bd7 {[%emt 0:08:47]} 16. h4 {[%emt 0:04:47][%cal Rh4g5]} f6 {[%emt 0:00:18]} (16... Nxh4 $2 17. Nxh4 gxh4 18. g5 $18) (16... gxh4 $2 17. g5 h3 18. gxh6 $18) 17. h5 {[%emt 0:03:45]} Nf4 {[%emt 0:00:37]} 18. Bxf4 {[%emt 0:00:38]} exf4 {[%emt 0:00:28]} 19. Nd4 {[%emt 0:01:06]} (19. Qd1 $14 {deserves consideration.}) 19... Qe7 {[%emt 0:05:51]} (19... f5 $11 20. Nxf5 Bxf5 21. exf5 a4) 20. Nf5 {[%emt 0:15:38]} Qe5 {[%emt 0:00:15]} 21. Rd1 {[%emt 0:12:28]} a4 {[%emt 0:02:25] [#]} 22. Rh3 {[%emt 0:00:30]} (22. a3 $1 $16) 22... Ra6 {[%emt 0:04:20]} (22... Bxf5 $11 23. exf5 a3) 23. Kd2 {[%emt 0:03:21]} (23. a3 $16) 23... Rb6 {[%emt 0:01:18]} 24. Rb1 {[%emt 0:00:41]} Ra8 {[%emt 0:05:00]} 25. Ke1 {[%emt 0:01:01][%cal Bd2e1,Be1f1,Bf1g1][%mdl 32]} Bf8 {[%emt 0:02:38]} 26. Kf1 {[%emt 0:00:04]} Rb4 {[%emt 0:04:04]} 27. Kg1 {[%emt 0:02:26]} (27. a3 $5 {[%cal Ra3b4]} Rb6 28. Qd2 $14) 27... Ra6 {[%emt 0:01:20]} (27... Bxf5 $11 28. gxf5 Rb6) 28. a3 $14 {[%emt 0:01:29]} Rbb6 {[%emt 0:04:44]} 29. Kf1 {[%emt 0:01:12]} Ra8 {[%emt 0:00:28]} 30. Nd1 {[%emt 0:00:44]} Re8 {[%emt 0:02:06][%cal Rc5e4]} 31. Nc3 {[%emt 0:00:02]} Ra8 {[%emt 0:01:08]} 32. Qd2 {[%emt 0:00:33]} Kf7 {[%emt 0:04:18]} 33. Kg2 {[%emt 0:00:26]} Re8 {[%emt 0:07:30]} 34. Rhh1 {[%emt 0:00:54]} Ra8 {[%emt 0:04:34]} 35. Rhe1 {[%emt 0:00:30]} Kg8 {[%emt 0:04:30]} 36. f3 {[%emt 0:00:09]} Kf7 {[%emt 0:00:00]} 37. Qf2 {[%emt 0:00:03]} (37. Nd4 $16) 37... Ra5 {[%emt 0:13:33]} (37... Rxb2 $11 {remains equal.} 38. Rxb2 Qxc3) 38. Qd2 {[%emt 0:00:46]} Ra8 $1 {[%emt 0:00:12]} 39. Qf2 {[%emt 0:00:04]} Ra5 {[%emt 0:00:05][%cal Ob6b2]} 40. Nd4 {[%emt 0:00:30] Pair of Knights!} Be7 {[%emt 0:02:51]} 41. Na2 {[%emt 0:02:49]} Ra8 {[%emt 0:05:01]} 42. Nb4 {[%emt 0:00:41]} Re8 {[%emt 0:00:26]} 43. Re2 {[%emt 0:04:48]} Bd8 {[%emt 0:00:26]} 44. Rbe1 {[%emt 0:01:03]} Rh8 {[%emt 0:01:11]} 45. Rd2 {[%emt 0:03:09]} Rg8 {[%emt 0:00:39]} 46. Ree2 {[%emt 0:00:51]} Kg7 {[%emt 0:00:21]} 47. Bb1 {[%emt 0:02:24]} Kf7 {[%emt 0:00:10]} (47... Re8 $142) 48. Nf5 $16 {[%emt 0:00:41]} Rh8 {[%emt 0:00:06]} 49. Ba2 {[%emt 0:00:04]} Kf8 {[%emt 0:00:24]} 50. Rc2 {[%emt 0:01:00]} (50. Nd3 $16 Nxd3 51. Rxd3) 50... Rh7 {[%emt 0:03:48]} (50... Rxb4 $14 51. axb4 Nd3) 51. Red2 {[%emt 0:00:59]} (51. Kf1 $16) 51... Rh8 {[%emt 0:00:13]} (51... Qe8 $1 $11) 52. Rc3 {[%emt 0:02:09]} Rh7 {[%emt 0:04:30]} 53. Bb1 {[%emt 0:03:50]} Rh8 {[%emt 0:00:38]} (53... Bxf5 $14 54. exf5 (54. gxf5 Qe8 $15) 54... Re7) 54. Nd3 {[%emt 0:01:09] White is much more active. The black rooks are badly placed.} Nxd3 {[%emt 0:00:18]} 55. Bxd3 {[%emt 0:00:02]} ({White should try} 55. Rcxd3 $16 Rh7 56. Re2) 55... Rxb2 $11 {[%emt 0:01:12]} 56. Rxb2 {[%emt 0:01:56]} Qxc3 {[%emt 0:00:18]} 57. Qc2 {[%emt 0:01:02]} Qxc2+ {[%emt 0:03:43] Weighted Error Value: White=0.25 (precise) /Black=0.21 (precise)} (57... Qxa3 $11 {keeps the balance.} 58. Rxb7 Bxf5) 1/2-1/2